bitfinex/quotes_SOLUSD_20250228
["timestamp","ask_amount","ask_price","bid_price","bid_amount"]
[1740732460935,129.74,129.91,129.84,0.063]
[1740732461424,129.74,129.91,129.85,20.0]
[1740732461620,82.8,129.92,129.85,20.0]
[1740732461825,82.8,129.92,129.86,18.64964886]
[1740732461826,82.3,129.92,129.86,18.64964886]
[1740732462313,9.2857,129.93,129.86,18.64964886]
[1740732462703,82.3,129.96,129.89,20.0]
[1740732462904,6.1865,129.97,129.92,18.64964886]
[1740732463111,2.98,129.98,129.92,18.64964886]
[1740732463309,82.3,130.0,129.92,18.64964886]
[1740732463600,0.03,130.01,129.96,18.64964886]
[1740732463818,0.03,130.01,129.95,20.0]
[1740732463819,0.03,130.01,129.98,18.64964886]
[1740732464298,0.03,130.01,129.97,10.24]
[1740732467218,0.03,130.01,129.98,18.64964886]
[1740732467719,0.03,130.01,130.0,38.64964886]
[1740732468019,0.03,130.01,130.0,38.79181043]
[1740732468218,0.03,130.01,130.0,182.98411043]
[1740732468400,0.03,130.01,130.0,266.58411043]
[1740732469218,0.063,130.12,130.08,20.0]
[1740732469399,0.063,130.12,130.08,18.64964886]
[1740732470920,0.063,130.12,130.1,20.0]
[1740732471227,0.063,130.12,130.07,10.14]
[1740732472123,0.14216157,130.11,130.07,10.14]
[1740732472298,0.063,130.12,130.07,10.14]
[1740732473623,0.20516157,130.12,130.07,10.14]
[1740732473933,0.063,130.12,130.07,10.14]
[1740732474629,82.3,130.11,130.07,10.14]
[1740732474808,82.3,130.11,130.03,10.12]
[1740732475226,18.64964886,130.09,130.0,81.6]
[1740732475409,88.4068,130.08,130.0,81.6]
[1740732475731,88.4068,130.08,130.01,18.64964886]
[1740732476032,88.4068,130.08,129.97,0.03]
[1740732476033,18.79181043,130.06,129.97,0.03]
[1740732476223,84.3,130.07,129.97,0.03]
[1740732476224,82.3,130.05,129.97,0.03]
[1740732476533,82.3,130.07,129.98,18.79181043]
[1740732476729,82.3,130.07,130.01,20.0]
[1740732476937,82.3,130.06,129.98,18.64964886]
[1740732477107,82.3,130.06,129.98,100.24964886]
[1740732477738,6.1068,130.08,130.01,20.0]
[1740732478028,6.1068,130.08,130.02,18.64964886]
[1740732478233,82.3,130.11,130.04,20.0]
[1740732478411,82.3,130.11,130.04,81.6]
[1740732479332,82.3,130.11,130.05,18.64964886]
[1740732479736,82.363,130.12,130.05,100.24964886]
[1740732480333,0.063,130.12,130.06,0.14216157]
[1740732480523,0.063,130.12,130.05,100.24964886]
[1740732481135,0.03,130.09,130.05,100.24964886]
[1740732481336,0.03,130.09,130.05,107.93894886]
[1740732481637,0.03,130.09,130.05,107.93874886]
[1740732482436,0.03,130.09,130.05,100.24964886]
[1740732483335,0.03,130.09,130.06,0.14216157]
[1740732483513,0.03,130.09,130.08,38.64964886]
[1740732483713,0.03,130.09,130.08,120.39181043]
[1740732484217,0.03,130.09,130.08,134.15603991]
[1740732484434,0.03,130.09,130.08,270.65603991]
[1740732484633,0.063,130.12,130.11,38.64964886]
[1740732484838,89.9797,130.22,130.12,0.14216157]
[1740732485037,18.79181043,130.21,130.12,81.6]
[1740732485225,20.79181043,130.21,130.12,81.6]
[1740732485539,7.7447,130.18,130.12,81.6]
[1740732485744,0.063,130.18,130.12,81.6]
[1740732486040,7.6824,130.17,130.12,81.6]
[1740732486220,82.363,130.16,130.08,81.6]
[1740732486420,82.363,130.16,130.08,89.2875]
[1740732486941,82.363,130.16,130.09,18.64964886]
[1740732488241,0.063,130.16,130.1,0.14216157]
[1740732488454,0.063,130.16,130.13,20.0]
[1740732488620,0.063,130.16,130.14,18.64964886]
[1740732488825,0.063,130.16,130.15,38.79181043]
[1740732489123,0.063,130.16,130.15,256.89181043]
[1740732489320,0.063,130.16,130.15,258.89181043]
[1740732489731,0.063,130.16,130.15,256.89181043]
[1740732489942,0.063,130.16,130.15,260.89181043]
[1740732490151,0.0001,130.16,130.15,258.89181043]
[1740732490328,0.0001,130.16,130.15,260.89181043]
[1740732490522,0.063,130.18,130.16,30.47461043]
[1740732490841,0.063,130.18,130.16,244.57461043]
[1740732491139,0.03,130.23,130.19,20.0]
[1740732491836,0.03,130.23,130.16,81.6]
[1740732492049,0.03,130.23,130.14,81.6]
[1740732492345,0.03,130.23,130.15,18.64964886]
[1740732492744,0.03,130.23,130.18,20.0]
[1740732492940,0.03,130.23,130.19,20.0]
[1740732493336,0.03,130.23,130.19,30.1]
[1740732494248,0.03,130.23,130.2,18.64964886]
[1740732494630,0.03,130.23,130.22,18.79181043]
[1740732494828,0.063,130.27,130.26,0.14216157]
[1740732495139,0.063,130.29,130.28,38.64964886]
[1740732495360,0.063,130.29,130.28,20.0]
[1740732495845,0.063,130.29,130.26,218.1]
[1740732496153,0.063,130.29,130.25,10.06]
[1740732496455,0.063,130.29,130.28,20.0]
[1740732496623,0.063,130.29,130.27,7.6758]
[1740732496820,0.063,130.29,130.28,18.79181043]
[1740732497221,0.063,130.29,130.26,81.6]
[1740732497643,0.063,130.29,130.28,20.0]
[1740732497847,0.063,130.29,130.23,81.6]
[1740732498045,0.063,130.29,130.24,10.08]
[1740732498635,0.063,130.29,130.24,17.758]
[1740732498827,0.063,130.29,130.24,10.08]
[1740732499030,0.063,130.29,130.25,18.79181043]
[1740732499224,0.063,130.29,130.25,100.39181043]
[1740732499548,0.063,130.29,130.28,38.79181043]
[1740732499844,0.063,130.29,130.28,120.39181043]
[1740732500549,0.063,130.29,130.28,101.74216157]
[1740732500750,0.063,130.29,130.28,101.6]
[1740732501445,0.063,130.29,130.28,128.06751043]
[1740732502127,0.063,130.29,130.28,120.24964886]
[1740732502330,0.063,130.29,130.26,89.2767]
[1740732502521,0.063,130.29,130.28,48.46751043]
[1740732502745,0.0001,130.29,130.28,52.0786678]
[1740732502924,0.0001,130.29,130.28,270.1786678]
[1740732503130,0.0001,130.32,130.31,40.79181043]
[1740732503346,0.063,130.37,130.36,20.14216157]
[1740732503532,0.063,130.37,130.36,120.39181043]
[1740732504254,0.063,130.37,130.36,256.89181043]
[1740732504426,0.063,130.37,130.36,260.89181043]
[1740732504626,0.063,130.39,130.37,30.46221043]
[1740732504823,0.063,130.39,130.37,44.58540767]
[1740732505023,0.063,130.39,130.37,46.58540767]
[1740732505345,0.063,130.39,130.37,44.58540767]
[1740732505724,0.063,130.39,130.37,110.45181043]
[1740732505946,0.063,130.39,130.37,430.12221043]
[1740732506158,0.063,130.39,130.37,10.06]
[1740732506447,0.063,130.39,130.38,0.14216157]
[1740732506649,0.063,130.39,130.38,236.89181043]
[1740732506949,86.45987807,130.47,130.41,20.0]
[1740732507137,4.15987807,130.47,130.41,101.6]
[1740732507943,4.15987807,130.47,130.42,18.79181043]
[1740732508130,82.3,130.52,130.44,18.79181043]
[1740732508327,82.3,130.55,130.44,18.79181043]
[1740732508546,85.0441,130.55,130.44,236.89181043]
[1740732508860,18.64964886,130.53,130.43,10.12]
[1740732509056,18.64964886,130.52,130.43,10.12]
[1740732509265,22.0,130.47,130.37,10.12]
[1740732509432,82.3,130.46,130.37,10.12]
[1740732509930,20.0,130.42,130.34,81.6]
[1740732510131,20.0,130.41,130.33,10.14]
[1740732510344,0.14216157,130.4,130.33,10.14]
[1740732510742,18.79181043,130.4,130.33,10.14]
[1740732510944,0.14216157,130.38,130.28,81.6]
[1740732511146,6.2966,130.39,130.31,18.79181043]
[1740732511341,6.2966,130.39,130.3,10.14]
[1740732511748,82.44216157,130.38,130.3,10.14]
[1740732512633,82.3,130.41,130.31,20.79181043]
[1740732512834,82.3,130.41,130.35,18.79181043]
[1740732513157,82.3,130.41,130.37,18.79181043]
[1740732513650,82.3,130.43,130.36,10.14]
[1740732514155,82.3,130.42,130.36,10.14]
[1740732514344,82.3,130.43,130.32,10.16]
[1740732514550,82.3,130.42,130.33,18.64964886]
[1740732514744,20.0,130.38,130.3,10.14]
[1740732514945,20.0,130.34,130.25,0.063]
[1740732515159,82.3,130.33,130.25,7.7405]
[1740732515329,82.3,130.33,130.25,0.063]
[1740732515955,82.3,130.32,130.25,0.063]
[1740732517039,20.0,130.28,130.25,0.063]
[1740732517243,82.3,130.31,130.25,0.063]
[1740732517442,82.3,130.3,130.25,0.063]
[1740732518052,20.0,130.32,130.25,7.7405]
[1740732518254,82.3,130.34,130.26,18.79181043]
[1740732518457,82.3,130.33,130.26,18.79181043]
[1740732518756,82.3,130.32,130.25,10.203]
[1740732518962,20.0,130.28,130.25,0.063]
[1740732519143,82.3,130.27,130.25,0.063]
[1740732520464,82.3,130.26,130.25,0.063]
[1740732521459,18.64964886,130.27,130.25,0.063]
[1740732521758,2.7835,130.28,130.25,0.063]
[1740732522148,85.5835,130.28,130.25,0.063]
[1740732522451,85.4959,130.33,130.25,0.063]
[1740732522762,85.4959,130.33,130.25,18.85481043]
[1740732522763,82.8,130.32,130.25,18.85481043]
[1740732523062,6.0768,130.35,130.28,20.0]
[1740732523361,82.8,130.36,130.29,18.79181043]
[1740732523534,82.8,130.36,130.3,10.16]
[1740732523738,2.7263,130.39,130.31,18.79181043]
[1740732523957,6.2608,130.4,130.31,20.79181043]
[1740732524162,6.2608,130.4,130.33,18.79181043]
[1740732524348,82.8,130.42,130.33,20.79181043]
[1740732524556,82.8,130.43,130.33,18.79181043]
[1740732524946,82.8,130.43,130.33,22.79181043]
[1740732525143,82.8,130.43,130.35,18.79181043]
[1740732525346,82.8,130.46,130.41,0.14216157]
[1740732525554,82.8,130.46,130.41,28.91181043]
[1740732526067,82.8,130.48,130.41,28.91181043]
[1740732526271,82.8,130.48,130.41,10.26216157]
[1740732526458,82.8,130.48,130.41,10.12]
[1740732527140,20.0,130.44,130.41,10.12]
[1740732527340,102.8,130.43,130.37,10.12]
[1740732527537,82.8,130.42,130.37,10.12]
[1740732528141,82.8,130.42,130.35,0.14216157]
[1740732528361,82.8,130.42,130.36,10.1]
[1740732529066,82.8,130.42,130.34,18.64964886]
[1740732529281,20.0,130.38,130.32,10.1]
[1740732529445,20.0,130.38,130.33,18.79181043]
[1740732529645,82.8,130.41,130.33,18.79181043]
[1740732530147,82.8,130.41,130.34,7.6722]
[1740732530371,82.8,130.41,130.33,18.64964886]
[1740732530664,6.0706,130.42,130.32,10.1]
[1740732530665,20.0,130.37,130.32,10.1]
[1740732530857,20.0,130.36,130.32,10.1]
[1740732531057,102.8,130.36,130.32,10.1]
[1740732533150,82.8,130.35,130.32,10.1]
[1740732533910,20.0,130.31,130.3,0.063]
[1740732534251,20.0,130.34,130.3,0.063]
[1740732534442,7.6711,130.36,130.3,0.063]
[1740732534443,20.0,130.31,130.3,0.063]
[1740732534853,20.0,130.34,130.3,0.063]
[1740732535057,20.0,130.31,130.3,0.063]
[1740732535480,82.8,130.32,130.3,0.063]
[1740732535653,82.8,130.37,130.3,0.063]
[1740732535853,20.0,130.33,130.3,0.063]
[1740732536054,82.8,130.35,130.3,0.063]
[1740732536256,82.8,130.34,130.3,0.063]
[1740732536973,20.0,130.31,130.3,0.063]
[1740732537168,82.8,130.33,130.3,0.063]
[1740732537678,20.0,130.31,130.3,0.063]
[1740732538676,82.8,130.33,130.3,0.063]
[1740732538891,82.8,130.37,130.3,0.063]
[1740732539087,20.0,130.33,130.3,0.063]
[1740732539259,82.8,130.32,130.3,0.063]
[1740732539878,26.6665,130.33,130.3,0.063]
[1740732539879,82.8,130.31,130.3,0.063]
[1740732540582,82.8,130.32,130.3,0.063]
[1740732541362,82.8,130.38,130.3,0.063]
[1740732541663,82.8,130.37,130.3,0.063]
[1740732541963,82.8,130.37,130.32,18.79181043]
[1740732542160,82.8,130.39,130.32,18.79181043]
[1740732542361,82.8,130.43,130.34,18.79181043]
[1740732542554,6.2807,130.44,130.34,18.79181043]
[1740732542555,82.8,130.42,130.36,0.14216157]
[1740732542760,82.8,130.42,130.36,9.98]
[1740732542954,20.0,130.39,130.36,9.98]
[1740732543175,82.8,130.38,130.36,9.98]
[1740732543868,82.8,130.37,130.36,9.98]
[1740732545192,82.8,130.37,130.36,10.12216157]
[1740732545562,20.0,130.4,130.36,9.98]
[1740732545988,20.0,130.4,130.37,0.14216157]
[1740732546376,82.8,130.42,130.37,0.14216157]
[1740732546570,82.8,130.41,130.37,0.14216157]
[1740732546765,82.8,130.41,130.36,321.98]
[1740732547266,20.0,130.37,130.36,9.98]
[1740732547777,82.8,130.39,130.36,9.98]
[1740732548087,82.8,130.43,130.37,18.79181043]
[1740732548267,82.8,130.42,130.37,18.79181043]
[1740732548589,82.8,130.42,130.37,26.46171043]
[1740732549282,82.8,130.45,130.37,108.06171043]
[1740732549866,20.0,130.41,130.37,0.14216157]
[1740732550082,82.8,130.4,130.32,9.96]
[1740732550289,20.0,130.36,130.28,87.7829]
[1740732550497,20.0,130.36,130.3,10.023]
[1740732550697,20.0,130.36,130.31,18.79181043]
[1740732550878,20.0,130.36,130.3,0.063]
[1740732551202,102.8,130.35,130.3,10.003]
[1740732551396,102.8,130.35,130.3,0.063]
[1740732552080,102.8,130.35,130.3,0.20516157]
[1740732553278,20.0,130.31,130.3,0.063]
[1740732553926,82.8,130.33,130.3,0.063]
[1740732554118,82.8,130.36,130.31,18.79181043]
[1740732554481,82.8,130.36,130.31,0.14216157]
[1740732554706,82.8,130.38,130.31,18.79181043]
[1740732554892,82.8,130.38,130.31,26.46571043]
[1740732555084,82.8,130.42,130.33,18.79181043]
[1740732555404,82.8,130.41,130.33,22.402258]
[1740732555608,82.8,130.41,130.35,18.79181043]
[1740732555784,109.90944693,130.45,130.37,18.79181043]
[1740732556287,109.90944693,130.45,130.37,330.79181043]
[1740732556611,20.0,130.41,130.38,9.92]
[1740732556789,29.10944693,130.45,130.32,7.6729]
[1740732556790,20.0,130.4,130.32,7.6729]
[1740732557117,20.0,130.39,130.34,18.79181043]
[1740732557611,82.8,130.42,130.34,18.79181043]
[1740732557908,82.8,130.44,130.34,24.4021728]
[1740732558210,82.8,130.44,130.36,18.79181043]
[1740732558411,82.8,130.44,130.36,0.14216157]
[1740732558612,82.8,130.44,130.38,0.14216157]
[1740732558905,15.13804932,130.45,130.4,0.14216157]
[1740732559099,15.13804932,130.45,130.4,18.79181043]
[1740732559413,15.13804932,130.45,130.39,9.9]
[1740732559908,20.0,130.41,130.39,9.9]
[1740732560217,82.8,130.4,130.39,9.9]
[1740732561223,82.8,130.44,130.39,17.71136157]
[1740732561520,82.8,130.43,130.39,9.9]
[1740732562420,82.8,130.43,130.4,0.14216157]
[1740732562802,0.03,130.45,130.42,0.14216157]
[1740732564891,0.03,130.45,130.4,0.14216157]
[1740732565097,0.03,130.45,130.4,110.06051043]
[1740732565398,0.03,130.45,130.4,127.23221043]
[1740732566213,0.03,130.45,130.4,26.46051043]
[1740732566725,0.03,130.45,130.4,45.63221043]
[1740732567105,0.03,130.45,130.4,127.23221043]
[1740732567305,0.03,130.45,130.4,129.23221043]
[1740732568020,0.03,130.45,130.4,441.23221043]
[1740732568317,0.03,130.45,130.4,420.06051043]
[1740732568522,0.03,130.45,130.39,9.9]
[1740732568824,82.8,130.44,130.4,9.82]
[1740732570203,20.0,130.4,130.38,0.063]
[1740732570403,82.8,130.39,130.38,0.063]
[1740732574000,82.8,130.43,130.38,0.063]
[1740732574221,82.8,130.42,130.38,0.063]
[1740732574932,82.8,130.41,130.38,0.063]
[1740732575132,82.8,130.4,130.38,0.063]
[1740732575331,82.8,130.39,130.38,0.063]
[1740732575503,20.0,130.39,130.38,0.063]
[1740732576301,8.51490927,130.43,130.38,0.063]
[1740732576302,20.0,130.41,130.38,0.063]
[1740732576833,24.18361057,130.44,130.38,0.063]
[1740732576834,82.8,130.4,130.38,0.063]
[1740732577014,20.0,130.41,130.38,0.063]
[1740732577607,16.2831,130.45,130.38,0.20516157]
[1740732577608,82.8,130.43,130.38,0.20516157]
[1740732577809,82.8,130.42,130.38,0.20516157]
[1740732579631,82.8,130.42,130.38,7.87456157]
[1740732580105,82.8,130.42,130.39,18.64964886]
[1740732580532,0.03,130.45,130.39,18.64964886]
[1740732581318,0.03,130.45,130.41,0.14216157]
[1740732581720,82.8,130.44,130.38,0.20516157]
[1740732583335,20.0,130.4,130.38,0.063]
[1740732583543,82.8,130.42,130.38,0.063]
[1740732585833,20.0,130.39,130.38,0.063]
[1740732586226,22.14216157,130.39,130.38,0.063]
[1740732586413,20.0,130.37,130.3,9.703]
[1740732586610,82.8,130.36,130.3,9.703]
[1740732587213,82.8,130.36,130.31,0.14216157]
[1740732587427,82.8,130.36,130.31,18.79181043]
[1740732588246,82.8,130.41,130.31,100.39181043]
[1740732588411,82.8,130.41,130.33,18.79181043]
[1740732588611,82.8,130.43,130.35,18.79181043]
[1740732588828,82.8,130.43,130.37,18.79181043]
[1740732589238,82.8,130.43,130.38,7.6698]
[1740732589422,75.8,130.43,130.38,7.6698]
[1740732589937,75.8,130.43,130.37,9.72216157]
[1740732591424,75.8,130.43,130.37,28.37181043]
[1740732591629,75.8,130.43,130.38,18.64964886]
[1740732592036,0.03,130.45,130.39,0.14216157]
[1740732592623,0.03,130.45,130.39,81.74216157]
[1740732593536,0.03,130.45,130.41,18.79181043]
[1740732594116,0.03,130.45,130.41,236.89181043]
[1740732594338,0.03,130.45,130.43,20.79181043]
[1740732594646,0.03,130.45,130.44,9.64216157]
[1740732595141,0.03,130.45,130.44,28.29181043]
[1740732595537,0.03,130.45,130.44,35.95811043]
[1740732596040,0.03,130.45,130.44,17.30846157]
[1740732597234,0.03,130.45,130.44,9.5]
[1740732597438,95.8,130.44,130.36,7.671]
[1740732597635,75.8,130.43,130.35,7.6714]
[1740732597948,75.8,130.43,130.36,0.14216157]
[1740732598524,75.8,130.43,130.35,319.6714]
[1740732598724,75.8,130.43,130.36,0.14216157]
[1740732598933,75.8,130.43,130.36,7.81306157]
[1740732599336,75.8,130.43,130.36,7.6709]
[1740732599546,75.8,130.43,130.37,0.14216157]
[1740732599952,75.8,130.43,130.35,312.0]
[1740732600124,75.8,130.42,130.33,81.6]
[1740732600329,75.8,130.41,130.35,0.14216157]
[1740732600743,2.03,130.45,130.32,7.6734]
[1740732600744,20.0,130.37,130.32,7.6734]
[1740732600929,75.8,130.39,130.32,7.6734]
[1740732601130,75.8,130.39,130.33,0.14216157]
[1740732601935,75.8,130.39,130.34,0.14216157]
[1740732602656,75.8,130.39,130.32,7.6733]
[1740732603031,20.0,130.36,130.31,9.38]
[1740732603345,75.8,130.35,130.31,17.0535]
[1740732603545,75.8,130.35,130.31,9.38]
[1740732603754,75.8,130.34,130.3,0.063]
[1740732604057,20.0,130.31,130.3,0.063]
[1740732604227,75.8,130.32,130.3,0.063]
[1740732604755,75.8,130.35,130.3,0.063]
[1740732605046,20.0,130.31,130.3,0.063]
[1740732605428,11.6717,130.35,130.3,0.063]
[1740732605636,20.0,130.31,130.3,0.063]
[1740732606238,2.80766157,130.37,130.3,0.063]
[1740732606442,82.8,130.36,130.3,0.063]
[1740732606733,20.0,130.32,130.3,0.063]
[1740732607042,82.8,130.34,130.3,0.063]
[1740732607229,82.8,130.34,130.3,9.423]
[1740732607430,82.8,130.34,130.31,0.14216157]
[1740732607854,82.8,130.34,130.3,9.423]
[1740732608153,82.8,130.38,130.31,18.79181043]
[1740732608847,82.8,130.38,130.31,0.14216157]
[1740732609054,20.0,130.34,130.3,9.423]
[1740732609450,20.0,130.34,130.3,321.423]
[1740732609649,20.0,130.34,130.3,9.423]
[1740732609850,28.00964886,130.41,130.31,18.79181043]
[1740732609851,82.8,130.35,130.31,18.79181043]
[1740732610050,36.51429903,130.43,130.31,18.79181043]
[1740732610051,82.8,130.4,130.31,18.79181043]
[1740732610258,82.8,130.39,130.31,18.79181043]
[1740732610844,82.8,130.39,130.31,100.39181043]
[1740732611357,82.8,130.39,130.31,104.39181043]
[1740732611938,82.8,130.39,130.33,18.79181043]
[1740732612544,82.8,130.39,130.31,81.6]
[1740732612735,20.0,130.36,130.32,18.79181043]
[1740732613059,82.8,130.38,130.32,18.79181043]
[1740732613951,82.8,130.38,130.31,26.46571043]
[1740732614842,82.8,130.37,130.3,9.423]
[1740732615154,82.8,130.41,130.32,18.79181043]
[1740732615356,82.8,130.4,130.3,104.30782909]
[1740732615652,82.8,130.4,130.33,0.14216157]
[1740732615959,82.8,130.4,130.32,312.0]
[1740732616137,82.8,130.4,130.33,0.14216157]
[1740732616338,82.8,130.4,130.3,91.023]
[1740732616339,20.0,130.36,130.3,0.063]
[1740732616537,20.0,130.32,130.3,0.063]
[1740732616759,82.8,130.31,130.3,0.063]
[1740732617146,82.8,130.36,130.31,0.14216157]
[1740732617462,82.8,130.35,130.3,0.063]
[1740732617840,82.8,130.35,130.31,0.14216157]
[1740732618042,82.8,130.35,130.33,0.14216157]
[1740732618242,82.8,130.35,130.31,9.3]
[1740732618658,82.8,130.35,130.32,0.14216157]
[1740732618839,82.8,130.4,130.32,18.79181043]
[1740732619051,82.8,130.39,130.32,18.79181043]
[1740732619357,20.0,130.36,130.31,90.9]
[1740732619562,82.8,130.35,130.31,9.3]
[1740732619749,82.8,130.35,130.31,16.9738]
[1740732620236,82.8,130.35,130.32,0.14216157]
[1740732620856,82.8,130.35,130.31,16.9739]
[1740732621166,82.8,130.35,130.32,0.14216157]
[1740732621467,82.8,130.4,130.32,18.79181043]
[1740732621659,82.8,130.39,130.32,18.79181043]
[1740732622157,82.8,130.39,130.34,0.14216157]
[1740732622357,82.8,130.42,130.34,312.14216157]
[1740732622860,82.8,130.41,130.34,312.14216157]
[1740732623161,20.0,130.38,130.34,321.28]
[1740732623468,20.0,130.38,130.34,9.28]
[1740732623645,82.8,130.37,130.34,9.28]
[1740732624056,82.8,130.37,130.35,7.6716]
[1740732624647,82.8,130.37,130.36,0.14216157]
[1740732625061,82.8,130.37,130.35,7.6716]
[1740732625443,82.8,130.37,130.35,0.14216157]
[1740732626263,82.8,130.42,130.37,0.14216157]
[1740732626479,82.8,130.42,130.37,312.14216157]
[1740732626763,0.03,130.43,130.38,18.64964886]
[1740732626971,0.03,130.43,130.39,0.14216157]
[1740732627174,0.03,130.43,130.41,0.14216157]
[1740732627550,82.4742456,130.44,130.41,0.14216157]
[1740732627974,0.03,130.45,130.41,100.39181043]
[1740732628180,0.03,130.45,130.43,18.79181043]
[1740732629266,0.03,130.45,130.43,100.39181043]
[1740732629668,0.03,130.45,130.44,20.40091196]
[1740732629963,0.03,130.45,130.44,102.00091196]
[1740732630181,0.03,130.45,130.44,108.05811043]
[1740732630382,0.03,130.45,130.44,338.45811043]
[1740732632598,0.0001,130.45,130.44,28.45811043]
[1740732632790,0.0001,130.45,130.44,32.06703928]
[1740732632969,0.0001,130.45,130.44,28.45811043]
[1740732633168,0.0001,130.45,130.44,26.45811043]
[1740732633475,0.0001,130.45,130.44,110.05811043]
[1740732634010,0.0001,130.45,130.44,248.55811043]
[1740732634486,0.0001,130.45,130.44,244.55811043]
[1740732634687,0.0001,130.45,130.44,107.91594886]
[1740732635300,0.0001,130.45,130.44,108.05811043]
[1740732635663,0.0001,130.45,130.44,420.05811043]
[1740732636499,0.0001,130.45,130.44,422.05811043]
[1740732636797,0.0001,130.45,130.44,110.05811043]
[1740732636964,0.0001,130.45,130.44,111.66698958]
[1740732637168,0.0001,130.45,130.44,109.66698958]
[1740732637502,6.5135,130.55,130.47,20.0]
[1740732637674,6.5135,130.55,130.47,131.20042313]
[1740732637868,6.5135,130.55,130.47,129.59181043]
[1740732638375,0.0001,130.48,130.47,277.75631043]
[1740732639888,0.0001,130.48,130.47,593.606932]
[1740732640275,82.4742456,130.56,130.5,18.79181043]
[1740732640471,0.03,130.57,130.5,100.39181043]
[1740732640672,0.03,130.57,130.52,18.79181043]
[1740732640895,0.03,130.57,130.54,18.79181043]
[1740732641583,0.03,130.57,130.54,0.14216157]
[1740732641790,0.03,130.57,130.53,9.18]
[1740732642589,82.4742456,130.56,130.53,9.18]
[1740732642773,82.4742456,130.55,130.53,9.18]
[1740732642974,84.9904456,130.54,130.49,9.16]
[1740732643192,82.4742456,130.53,130.49,9.16]
[1740732643397,82.4742456,130.53,130.47,9.16]
[1740732643693,82.4742456,130.53,130.46,9.14]
[1740732643880,82.4742456,130.52,130.47,0.14216157]
[1740732644076,82.4742456,130.52,130.47,7.80666157]
[1740732645204,82.4742456,130.52,130.46,16.805]
[1740732645500,6.372,130.51,130.46,9.14]
[1740732645673,6.372,130.51,130.46,16.805]
[1740732646073,82.4742456,130.52,130.46,16.805]
[1740732646375,82.4742456,130.52,130.47,0.14216157]
[1740732647273,82.4742456,130.51,130.46,9.14]
[1740732647679,82.4742456,130.5,130.46,9.14]
[1740732648274,82.4742456,130.5,130.46,16.805]
[1740732648475,82.4742456,130.5,130.47,0.14216157]
[1740732649176,82.4742456,130.53,130.47,0.14216157]
[1740732649388,82.4742456,130.53,130.47,18.79181043]
[1740732650268,82.4742456,130.53,130.47,0.14216157]
[1740732650474,84.9904456,130.54,130.47,319.86956157]
[1740732650675,84.9904456,130.54,130.49,0.14216157]
[1740732650912,0.03,130.52,130.49,0.14216157]
[1740732652189,0.03,130.52,130.47,7.7274]
[1740732652511,0.03,130.52,130.47,7.86966157]
[1740732652674,0.03,130.52,130.48,18.64964886]
[1740732653102,0.03,130.52,130.49,0.14216157]
[1740732653280,0.03,130.52,130.49,81.74216157]
[1740732653476,0.03,130.52,130.51,0.14216157]